bitfinex/quotes_ETHUSD_20260313
["timestamp","ask_amount","ask_price","bid_price","bid_amount"]
[1773374732417,7.44773212,2117.2,2117.0,0.001]
[1773374733336,8.43392728,2117.1,2116.8,0.001]
[1773374733729,6.26692729,2117.0,2116.8,0.001]
[1773374734442,2.16699999,2117.1,2116.8,6.3955801]
[1773374734838,2.16699999,2117.1,2116.9,2.167]
[1773374735139,2.16699999,2117.1,2116.9,8.5615801]
[1773374736331,2.088994,2117.1,2116.9,8.5615801]
[1773374738323,2.088994,2117.1,2117.0,6.3945801]
[1773374739037,2.088994,2117.1,2116.9,2.167]
[1773374739223,7.44773897,2117.2,2116.9,2.167]
[1773374742027,7.44773897,2117.2,2117.0,0.001]
[1773374742422,7.44973897,2117.2,2117.0,0.001]
[1773374746263,7.44973897,2117.2,2116.8,0.001]
[1773374746570,2.16810242,2116.8,2116.7,0.001]
[1773374746866,3.34913038,2116.8,2116.7,6.01053069]
[1773374747534,3.34913038,2116.8,2116.7,8.18053069]
[1773374748334,2.16810242,2116.8,2116.7,8.18053069]
[1773374748539,1.18089071,2117.1,2116.8,6.00953069]
[1773374748842,5.99494988,2117.2,2116.8,6.00953069]
[1773374749858,5.99494988,2117.2,2116.7,2.171]
[1773374750248,5.99494988,2117.2,2116.7,8.18053069]
[1773374751058,7.56935828,2117.1,2116.7,8.18053069]
[1773374754558,7.56935828,2117.1,2116.9,0.001]
[1773374754733,0.002,2117.0,2116.9,6.32105055]
[1773374755160,0.002,2117.0,2116.7,2.171]
[1773374759547,1.18291639,2117.0,2116.7,2.171]
[1773374761939,0.002,2117.0,2116.7,2.171]
[1773374764574,0.002,2117.3,2117.0,0.793093]
[1773374764764,0.002,2117.7,2117.2,0.793093]
[1773374764966,7.68252721,2117.7,2117.2,0.793093]
[1773374765164,6.502,2117.7,2117.2,0.793093]
[1773374765366,6.502,2117.7,2117.3,2.171]
[1773374765770,7.68253485,2117.7,2117.3,2.171]
[1773374767263,7.68253485,2117.7,2117.3,3.35173065]
[1773374767463,7.68253485,2117.7,2117.3,2.171]
[1773374767658,6.502,2117.7,2117.3,3.35174198]
[1773374768363,7.68252915,2117.7,2117.3,3.35174198]
[1773374770484,6.502,2117.7,2117.3,3.35174198]
[1773374771286,0.002,2117.9,2117.6,0.793093]
[1773374771460,1.18226745,2118.2,2117.8,0.793093]
[1773374771784,0.002,2118.2,2117.9,2.96235453]
[1773374774254,0.002,2118.2,2118.0,1.18035882]
[1773374776389,0.002,2118.2,2117.9,4.14272616]
[1773374778562,0.002,2118.2,2117.9,3.35038735]
[1773374778984,6.502,2118.2,2117.4,4.72261859]
[1773374779173,6.502,2118.2,2117.5,1.1806339]
[1773374779490,6.502,2118.2,2117.3,1.18070421]
[1773374779684,6.5,2118.0,2117.2,4.72309795]
[1773374780091,6.5,2118.0,2117.3,0.79235453]
[1773374780275,6.5,2118.0,2117.4,2.169]
[1773374780867,6.502,2118.0,2117.4,2.169]
[1773374782190,1.18041456,2117.9,2117.4,2.169]
[1773374782382,6.5,2117.8,2116.9,0.79335453]
[1773374782581,6.5,2117.8,2117.0,6.0681]
[1773374782895,6.5,2117.8,2117.0,2.169]
[1773374783092,6.5,2117.8,2117.1,0.79235453]
[1773374783267,6.5,2117.8,2117.2,0.04723219]
[1773374783793,6.5,2117.8,2117.3,0.79235453]
[1773374783993,6.5,2117.8,2117.4,0.04722773]
[1773374784290,6.5,2117.8,2117.0,2.169]
[1773374784291,6.5,2117.6,2117.2,1.18080483]
[1773374784498,6.5,2117.6,2116.9,1.18192954]
[1773374784790,6.5,2117.6,2117.3,2.168]
[1773374785192,6.5,2117.6,2117.0,0.04723665]
[1773374786265,6.5,2117.6,2117.1,2.168]
[1773374786465,7.68063754,2117.5,2117.1,2.168]
[1773374788906,7.6806531,2117.5,2117.2,0.04723219]
[1773374790074,7.6806531,2117.5,2117.1,2.168]
[1773374790400,7.6806531,2117.5,2116.9,1.1819699]
[1773374790587,6.5,2117.2,2116.9,0.001]
[1773374790793,6.5,2117.2,2116.7,0.001]
[1773374790993,6.4995,2117.0,2116.7,0.001]
[1773374791385,6.4995,2117.0,2116.8,2.167]
[1773374792193,6.4995,2117.0,2116.7,0.001]
[1773374792908,7.68041639,2117.0,2116.7,0.001]
[1773374793778,7.68041639,2117.0,2116.8,2.167]
[1773374794286,7.68041639,2117.0,2116.7,0.001]
[1773374794605,7.68041639,2117.0,2116.5,0.001]
[1773374796008,7.68041639,2117.0,2116.6,2.167]
[1773374796175,1.18089699,2117.1,2116.7,0.04824335]
[1773374796378,7.68039699,2117.1,2116.7,0.04824335]
[1773374796577,7.68039699,2117.1,2116.6,2.166]
[1773374797601,7.68039699,2117.1,2116.6,3.34810508]
[1773374801192,7.68039699,2117.1,2116.7,0.001]
[1773374801391,7.68039699,2117.1,2116.7,0.04824335]
[1773374801697,5.51457861,2117.7,2116.7,0.04824335]
[1773374801698,7.67997029,2117.8,2116.9,0.001]
[1773374801885,6.4995,2117.7,2116.9,0.04823888]
[1773374802086,6.4995,2117.7,2116.9,0.001]
[1773374802293,6.4995,2117.5,2116.9,0.001]
[1773374804539,6.4995,2117.3,2116.9,0.001]
[1773374804691,6.4995,2117.3,2117.0,2.163]
[1773374805816,0.002,2117.1,2117.0,2.163]
[1773374806021,6.5015,2117.1,2116.8,0.001]
[1773374806496,6.4995,2116.9,2116.8,0.001]
[1773374807300,6.4995,2116.9,2116.8,2.163]
[1773374809801,4.7254685,2117.1,2116.8,2.163]
[1773374809802,6.5015,2117.1,2116.8,2.163]
[1773374810116,7.68236239,2117.1,2116.8,2.163]
[1773374811120,7.68236239,2117.1,2116.8,3.34501272]
[1773374811121,0.002,2117.1,2116.8,3.34501272]
[1773374811415,0.002,2117.1,2116.8,2.164]
[1773374812723,0.001,2117.1,2116.8,3.34399154]
[1773374812919,6.501,2117.1,2116.8,2.163]
[1773374813299,6.501,2117.1,2116.8,3.34402264]
[1773374813624,6.501,2117.1,2116.8,2.163]
[1773374813802,6.501,2117.1,2116.8,3.34402729]
[1773374814321,6.501,2117.1,2116.8,2.163]
[1773374814516,0.001,2117.1,2116.8,2.163]
[1773374814819,7.6807787,2117.3,2116.8,3.34397789]
[1773374815320,7.6807787,2117.3,2116.8,3.34402188]
[1773374815716,7.6807787,2117.3,2116.8,2.163]
[1773374815902,7.6807787,2117.3,2116.8,3.34401183]
[1773374816715,7.6807787,2117.3,2116.8,2.163]
[1773374817501,0.002,2117.1,2116.8,2.163]
[1773374817701,6.502,2117.1,2116.8,2.163]
[1773374818122,6.502,2117.1,2116.8,0.001]
[1773374819326,6.502,2117.1,2116.9,2.159]
[1773374820526,7.68290256,2117.1,2116.9,2.159]
[1773374821529,7.68290256,2117.1,2116.5,0.001]
[1773374821712,0.65238608,2116.8,2116.5,0.001]
[1773374822803,1.83342593,2116.8,2116.6,2.157]
[1773374823325,0.65238608,2116.8,2116.6,2.157]
[1773374823829,8.33341921,2116.8,2116.6,2.157]
[1773374825733,8.33341921,2116.8,2116.5,0.001]
[1773374825934,8.33341921,2116.8,2116.7,2.157]
[1773374826235,7.68287514,2117.1,2116.7,2.157]
[1773374828333,7.68287514,2117.1,2116.5,0.001]
[1773374829414,7.68287514,2117.1,2116.6,2.157]
[1773374829927,7.68287514,2117.1,2116.7,2.157]
[1773374830137,7.68287514,2117.1,2116.8,0.001]
[1773374830334,0.002,2116.9,2116.4,0.001]
[1773374830513,6.5,2116.8,2116.4,0.001]
[1773374831502,6.5,2116.8,2116.5,2.156]
[1773374831902,0.002,2116.9,2116.3,0.001]
[1773374831903,6.5,2116.5,2116.3,0.001]
[1773374832104,6.5,2116.3,2115.6,1.18168234]
[1773374832521,6.5,2116.3,2115.7,0.04726568]
[1773374833037,4.72485415,2116.5,2115.7,0.79235453]
[1773374833038,7.68123819,2116.5,2115.7,0.79235453]
[1773374833348,7.68112349,2116.7,2115.9,0.79235453]
[1773374833643,7.68112349,2116.7,2116.0,2.20225897]
[1773374833932,7.68112349,2116.7,2116.0,2.155]
[1773374834311,7.68112349,2116.7,2116.1,1.18141864]
[1773374834679,7.68109124,2116.7,2116.1,1.18141864]
[1773374835171,7.68109124,2116.7,2116.2,0.04725451]
[1773374835873,7.68109124,2116.7,2116.1,1.18141864]
[1773374836472,7.68109124,2116.7,2116.0,3.33645181]
[1773374838270,7.6830254,2116.9,2116.2,1.18136282]
[1773374840558,7.6830254,2116.9,2116.1,1.18141864]
[1773374842586,7.6830254,2116.9,2116.4,0.001]
[1773374842886,6.5,2116.6,2116.4,0.001]
[1773374844795,7.68114727,2116.6,2116.4,0.001]
[1773374847770,0.002,2116.7,2116.4,0.001]
[1773374847978,7.6830929,2116.7,2116.4,0.001]
[1773374848191,6.502,2116.7,2116.4,0.001]
[1773374849200,7.68308679,2116.7,2116.4,0.001]
[1773374849584,6.502,2116.7,2116.4,0.001]
[1773374850878,7.68308664,2116.7,2116.4,0.001]
[1773374852884,7.68308664,2116.7,2116.5,2.149]
[1773374853093,7.68308664,2116.7,2116.1,0.001]
[1773374854294,7.68308664,2116.7,2116.2,2.149]
[1773374855386,7.68308664,2116.7,2116.3,0.001]
[1773374856207,7.6831101,2116.7,2116.3,0.04825227]
[1773374856416,7.6831101,2116.7,2116.3,0.001]
[1773374860136,7.68308398,2116.7,2116.3,0.001]
[1773374863522,6.502,2116.7,2116.3,0.001]
[1773374863716,7.68308445,2116.7,2116.3,0.001]
[1773374863921,6.502,2116.7,2116.3,0.001]
[1773374864123,7.68308381,2116.7,2116.3,0.001]
[1773374864857,0.002,2116.9,2116.5,0.79371958]
[1773374865149,0.002,2116.9,2116.3,0.001]
[1773374865351,0.002,2117.1,2116.7,0.79371958]
[1773374865647,0.002,2117.4,2116.9,0.79371958]
[1773374865850,2.8325233,2117.6,2117.1,0.79371958]
[1773374866050,0.002,2118.0,2117.5,0.79371958]
[1773374866224,2.25495331,2118.2,2117.7,0.79371958]
[1773374866225,0.002,2118.2,2117.7,0.79371958]
[1773374866418,0.002,2118.2,2117.8,2.144]
[1773374867022,0.002,2118.2,2117.8,3.32443142]
[1773374868154,0.002,2118.2,2117.8,4.118151]
[1773374869139,0.002,2118.4,2117.8,4.118151]
[1773374870339,6.502,2118.4,2117.8,4.118151]
[1773374870731,6.502,2118.4,2117.5,1.97435712]
[1773374870954,6.502,2118.4,2117.9,2.145]
[1773374871267,6.5,2118.2,2117.9,2.145]
[1773374871466,1.18019166,2118.3,2117.9,2.145]
[1773374871628,6.5,2118.2,2117.9,2.145]
[1773374873448,7.6803031,2118.1,2117.2,1.18074906]
[1773374873785,6.5,2117.9,2117.0,1.18087267]
[1773374874741,6.5,2117.9,2117.2,2.131]
[1773374874943,6.5,2117.7,2117.2,2.131]
[1773374875572,6.5,2117.5,2117.2,2.131]
[1773374877150,6.5,2117.5,2116.8,1.18099259]
[1773374878274,6.5,2117.5,2117.2,2.135]
[1773374878451,6.5,2117.3,2117.2,2.135]
[1773374879179,6.5,2117.3,2116.8,1.18099259]
[1773374879970,7.68047029,2117.8,2117.1,2.73885243]
[1773374880349,7.68047029,2117.8,2117.1,1.558]
[1773374880678,7.68047029,2117.8,2117.2,2.137]
[1773374885779,7.68047029,2117.8,2117.1,2.73982755]
[1773374886079,6.4995,2117.7,2117.1,2.73985966]
[1773374886276,6.4995,2117.7,2117.1,1.559]
[1773374886781,6.4995,2117.5,2117.1,1.559]
[1773374886981,6.4995,2117.5,2117.2,2.115]
[1773374887183,6.4995,2117.5,2117.1,1.559]
[1773374887590,6.4995,2117.5,2117.1,2.7398549]
[1773374887759,7.68005642,2117.7,2117.2,0.04723219]
[1773374888165,7.68005642,2117.7,2117.1,1.558]
[1773374888468,7.68005642,2117.7,2117.0,0.001]
[1773374888688,7.68005642,2117.7,2117.1,2.114]
[1773374889199,7.68005642,2117.7,2117.0,0.001]
[1773374889489,6.4995,2117.6,2117.0,0.001]
[1773374889691,6.4995,2117.6,2116.8,0.001]
[1773374890381,6.499,2117.4,2116.8,0.001]
[1773374890893,6.499,2117.4,2116.3,0.001]
[1773374890894,6.499,2117.1,2116.3,0.001]
[1773374891098,6.499,2116.8,2116.3,0.001]
[1773374891398,1.18097217,2116.9,2116.4,0.002]
[1773374891694,7.67997217,2116.9,2116.3,0.001]
[1773374891895,7.67997217,2116.9,2116.4,2.056]
[1773374895009,7.67997217,2116.9,2116.5,0.001]
[1773374896885,7.6796933,2117.4,2116.5,0.05024781]
[1773374897402,7.6796933,2117.4,2116.5,0.04824781]
[1773374898513,7.6796933,2117.4,2116.5,0.001]
[1773374898679,6.499,2117.1,2116.5,0.001]
[1773374899510,6.499,2116.9,2116.5,0.001]
[1773374902016,6.499,2116.7,2116.5,0.001]
[1773374902214,6.499,2116.7,2116.3,0.001]
[1773374904000,7.68013956,2116.6,2116.3,0.001]
[1773374904815,11.18378895,2117.4,2116.4,0.002]
[1773374904816,6.499,2117.0,2116.4,0.002]
[1773374906415,6.499,2116.8,2116.4,0.002]
[1773374908104,6.499,2116.8,2116.6,0.001]
[1773374908412,7.68006727,2116.8,2116.6,0.001]
[1773374909407,7.68006727,2116.8,2116.4,0.001]
[1773374910117,7.68006727,2116.8,2116.1,2.119]
[1773374910304,7.68006727,2116.8,2116.1,3.30036421]
[1773374910505,7.68006727,2116.8,2116.2,0.003]
[1773374910710,7.67936061,2117.1,2116.2,0.003]
[1773374913297,7.67936061,2117.1,2116.3,0.003]
[1773374913524,7.67936061,2117.1,2116.3,0.04725062]
[1773374913702,7.67936061,2117.1,2116.4,0.05025004]
[1773374913902,7.67936061,2117.1,2116.4,0.003]
[1773374915232,7.67936061,2117.1,2116.4,0.05025004]
[1773374916101,7.67936061,2117.1,2116.5,0.003]
[1773374916929,7.67936061,2117.1,2116.5,1.18419536]
[1773374917228,2.82537345,2117.0,2116.6,0.003]
[1773374917439,0.002,2117.2,2116.6,0.003]
[1773374917627,0.002,2117.4,2116.8,0.001]
[1773374917927,0.002,2117.4,2116.7,1.98378406]
[1773374917928,0.002,2117.4,2117.0,0.001]
[1773374918518,1.18269917,2117.4,2117.0,0.001]
[1773374920932,0.002,2117.4,2117.0,0.001]
[1773374922232,0.002,2117.1,2117.0,0.001]
[1773374922828,0.002,2117.1,2116.9,3.29791833]
[1773374923025,0.002,2117.4,2116.9,3.29791833]
[1773374925438,0.002,2117.4,2117.0,0.04723664]
[1773374928141,0.002,2117.4,2117.0,1.22809979]
[1773374928339,0.002,2117.4,2117.0,1.18086315]
[1773374930137,0.002,2117.4,2117.1,0.79309679]
[1773374930740,0.002,2117.4,2117.0,1.18086315]
[1773374934369,0.002,2117.6,2117.2,1.18080483]
[1773374934842,6.502,2117.6,2117.2,1.18080483]
[1773374935170,6.502,2117.6,2117.2,1.18180483]
[1773374935768,0.002,2117.4,2117.2,1.18180483]
[1773374935955,0.002,2117.4,2117.3,0.04722996]
[1773374936356,0.002,2117.4,2117.3,1.22797902]
[1773374937377,0.002,2117.8,2117.3,2.02107581]
[1773374937589,0.002,2117.8,2117.5,0.79309679]
[1773374937750,0.002,2117.8,2117.5,0.84032229]
[1773374938247,0.002,2118.1,2117.7,0.79309679]
[1773374938661,0.002,2118.1,2117.6,1.18058179]
[1773374938861,7.68230328,2118.1,2117.6,1.18058179]
[1773374939072,6.502,2118.0,2117.4,3.29969063]
[1773374939370,6.502,2118.0,2117.4,2.119]
[1773374939949,6.502,2118.0,2117.4,3.29969316]
[1773374940350,6.502,2118.0,2117.5,0.0472255]
[1773374940351,7.6824041,2118.0,2117.5,0.0472255]
[1773374940547,0.002,2118.0,2117.5,0.0472255]
[1773374942962,0.002,2118.0,2117.6,1.18058179]
[1773374943160,0.002,2118.0,2117.7,0.04722104]
[1773374943359,0.002,2118.0,2117.6,1.18058179]
[1773374943884,6.502,2118.0,2117.7,0.04722104]
[1773374944351,6.502,2118.0,2117.6,1.18058179]
[1773374945065,7.6823638,2118.0,2117.5,4.72235804]
[1773374945282,7.6823638,2118.0,2117.4,2.119]
[1773374945484,7.6823638,2118.0,2117.2,0.001]
[1773374946656,7.6823638,2118.0,2117.3,2.115]
[1773374947292,6.5,2117.8,2117.3,2.115]
[1773374947984,6.502,2117.8,2117.3,2.115]
[1773374949286,6.5,2117.6,2117.3,2.115]
[1773374950566,6.5,2117.6,2117.2,0.001]
[1773374951588,6.5,2117.4,2117.2,0.001]
[1773374951763,6.5,2117.4,2117.3,2.091]
[1773374952264,6.5,2117.4,2117.2,0.001]
[1773374953469,1.18063754,2117.5,2117.2,2.096]
[1773374953470,1.18074906,2117.3,2117.2,2.096]
[1773374953666,7.68074906,2117.3,2117.2,2.096]
[1773374954288,6.5,2117.3,2117.2,2.096]
[1773374954673,7.68073601,2117.4,2117.2,2.096]
[1773374957397,7.68073601,2117.4,2117.0,0.04823665]
[1773374957696,7.68073601,2117.4,2117.0,0.001]
[1773374958796,7.68073601,2117.4,2117.1,2.103]
[1773374960199,7.68073601,2117.4,2117.2,0.001]
[1773374960388,7.68070466,2117.4,2117.2,0.001]
[1773374961703,7.68070466,2117.4,2117.2,2.106]
[1773374962776,4.72255387,2117.5,2117.2,2.106]
[1773374962777,1.18067253,2117.5,2117.2,2.106]
[1773374963089,7.68010724,2117.6,2117.3,0.001]
[1773374963401,6.4995,2117.6,2117.3,0.001]
[1773374964204,1.1805657,2117.7,2117.3,0.001]
[1773374964377,7.6800657,2117.7,2117.3,0.001]
[1773374964900,7.6800657,2117.7,2117.2,3.28679931]
[1773374965107,7.6800657,2117.7,2117.2,3.28779931]
[1773374965892,7.6800657,2117.7,2117.2,2.107]
[1773374966408,7.6800657,2117.7,2117.2,3.28777768]
[1773374967206,6.4995,2117.7,2117.3,0.001]
[1773374967408,7.6800343,2117.7,2117.3,0.001]
[1773374967709,1.18250316,2117.8,2117.3,0.001]
[1773374968010,0.002,2117.8,2117.4,0.001]
[1773374968207,0.002,2118.0,2117.6,0.001]
[1773374970216,6.5015,2118.0,2117.6,0.001]
[1773374970826,6.5015,2118.0,2117.4,1.1806933]
[1773374970995,6.5015,2118.0,2117.5,0.001]
[1773374972218,0.002,2117.8,2117.5,0.001]
[1773374972600,0.002,2118.1,2117.5,1.9815434]
[1773374973937,0.002,2118.1,2117.6,1.18058179]
[1773374974109,0.002,2118.1,2117.6,1.22780506]
[1773374974416,0.002,2118.1,2117.6,1.18058179]
[1773374974987,6.502,2118.3,2117.7,3.513518]
[1773374975218,0.002,2118.3,2117.7,2.4929]
[1773374975396,0.002,2118.3,2117.7,4.4744434]
[1773374975595,0.002,2118.3,2117.7,1.9815434]
[1773374975924,6.5,2118.2,2117.8,2.11]
[1773374976094,6.5,2118.2,2117.8,3.29046739]
[1773374976920,6.5,2118.2,2117.8,2.11]
[1773374977221,6.5,2118.2,2117.8,3.29046208]
[1773374977925,6.502,2118.3,2117.8,3.33768089]
[1773374978125,0.002,2118.3,2117.8,5.27200548]
[1773374978507,0.002,2118.3,2117.8,3.29046208]
[1773374978831,0.002,2118.5,2117.8,3.33768089]
[1773374980232,0.002,2118.5,2117.8,5.31922429]
[1773374981717,0.002,2118.5,2117.8,5.27200548]
[1773374982127,6.502,2118.5,2117.8,5.27200548]
[1773374982326,0.002,2118.7,2118.1,1.9815434]
[1773374982530,6.502,2118.7,2118.1,2.02875552]
[1773374982734,7.68196946,2118.7,2117.8,5.27200548]
[1773374982911,7.68196946,2118.7,2117.9,3.131166]
[1773374983741,6.502,2118.7,2117.9,3.131166]
[1773374984443,6.502,2118.7,2118.0,1.18035882]
[1773374984617,0.002,2118.3,2118.0,1.18035882]
[1773374985557,0.002,2118.3,2118.1,0.04721212]
[1773374985922,0.002,2118.5,2118.1,0.04721212]
[1773374986354,0.002,2118.5,2118.2,1.18024737]
[1773374986554,0.002,2118.5,2118.3,0.04720766]
[1773374986738,6.502,2118.5,2118.4,2.114]
[1773374987061,0.002,2118.5,2118.4,2.114]
[1773374988163,6.502,2118.5,2118.4,2.114]
[1773374989038,0.002,2118.5,2118.4,2.114]
[1773374990556,6.502,2118.5,2118.4,2.114]
[1773374991563,0.002,2118.5,2118.4,3.29413595]
[1773374991933,0.002,2118.5,2118.4,2.114]
[1773374992129,0.002,2118.5,2118.4,3.29413595]
[1773374992543,0.002,2118.5,2118.4,2.114]
[1773374994357,0.002,2118.5,2118.4,3.29413595]
[1773374994845,0.002,2118.5,2118.4,2.114]
[1773374995245,6.502,2118.5,2118.4,2.114]
[1773374997360,6.502,2118.5,2118.4,2.115]
[1773374997761,0.002,2118.5,2118.4,3.29513595]
[1773374997937,0.002,2118.5,2118.4,2.115]
[1773374998865,0.002,2118.5,2118.4,3.29513595]
[1773374999369,0.002,2118.5,2118.4,2.115]
[1773374999748,6.50199995,2118.5,2118.4,2.115]
[1773375001865,6.50199995,2118.7,2118.4,3.29513595]
[1773375002070,6.50199995,2118.7,2118.5,0.0472032]
[1773375002974,0.002,2118.7,2118.5,0.0472032]
[1773375003175,9.32601037,2119.0,2118.5,0.0472032]
[1773375003380,6.49999995,2119.0,2118.5,0.0472032]
[1773375004674,6.49999995,2119.0,2118.6,1.18002454]
[1773375006051,6.05533819,2119.4,2118.9,6.09381553]
[1773375006575,6.05533819,2119.4,2119.1,7.27355095]
[1773375007084,7.23493225,2119.4,2119.0,3.29379238]
[1773375007380,6.05533819,2119.4,2119.0,3.29379238]
[1773375007802,6.05533819,2119.4,2119.0,3.29378315]
[1773375008667,6.05533819,2119.4,2119.0,9.38759868]
[1773375009165,6.05533819,2119.4,2119.1,6.09381553]
[1773375010394,7.61684757,2119.6,2119.1,6.09381553]
[1773375010600,0.002,2119.2,2119.1,6.09381553]
[1773375010900,0.002,2119.2,2119.1,7.27356164]
[1773375011796,0.002,2119.4,2119.1,7.27356164]
[1773375013712,6.05733819,2119.4,2119.0,3.29375137]
[1773375013909,0.79210628,2119.3,2118.7,0.001]
[1773375014068,6.05533819,2119.2,2118.7,0.001]
[1773375014412,0.002,2119.4,2118.7,0.001]
[1773375014413,6.05533819,2119.0,2118.7,0.001]
[1773375015003,7.23519566,2118.9,2118.7,0.001]
[1773375015203,1.17968688,2118.8,2118.7,0.001]
[1773375016417,1.17968688,2118.8,2118.7,2.119]
[1773375020320,1.17968688,2118.8,2118.7,2.16619875]
[1773375021141,6.05533819,2118.9,2118.7,2.16619875]
[1773375024446,1.1818045,2119.0,2118.7,2.16619875]
[1773375024813,7.48701385,2119.0,2118.7,2.16619875]
[1773375026451,6.30720935,2119.0,2118.7,2.16619875]
[1773375026631,7.48701528,2119.0,2118.7,2.16619875]
[1773375027256,7.48701528,2119.0,2118.7,8.02217816]
[1773375027747,6.30720935,2119.0,2118.7,8.02217816]
[1773375027946,7.48701404,2119.0,2118.7,8.02217816]
[1773375028850,7.48701404,2119.0,2118.7,2.16619875]
[1773375029054,7.48701404,2119.0,2118.7,2.119]
[1773375032454,6.30720935,2119.0,2118.7,2.119]
[1773375032658,7.48701261,2119.0,2118.7,2.119]
[1773375032856,6.30720935,2119.0,2118.7,3.2989573]
[1773375033041,0.002,2119.0,2118.8,0.04719652]
[1773375033242,0.002,2119.0,2118.8,5.90317593]
[1773375033863,0.002,2119.0,2118.9,1.17985747]
[1773375035037,0.002,2119.0,2118.9,7.03583688]
[1773375035867,0.002,2119.0,2118.7,2.119]
[1773375036074,0.002,2119.0,2118.8,7.03588538]
[1773375037368,0.002,2119.0,2118.9,0.001]
[1773375038138,0.002,2119.0,2118.9,5.85697941]
[1773375038375,0.002,2119.0,2118.9,5.9041737]
[1773375039082,0.002,2119.2,2119.0,5.85597941]
[1773375039246,0.002,2119.2,2119.1,2.129]
[1773375039448,6.30720935,2119.4,2119.1,7.98497941]
[1773375039665,0.002,2119.4,2119.1,7.98497941]
[1773375040067,0.002,2119.4,2119.1,2.129]
[1773375040272,0.002,2119.4,2119.2,5.85597941]
[1773375040442,6.6872083,2119.6,2119.2,5.85597941]
[1773375040642,0.38199895,2119.6,2119.2,5.85597941]
[1773375042345,0.38199895,2119.6,2119.2,7.03562499]
[1773375044363,0.38199895,2119.6,2119.2,7.0828126]
[1773375045258,0.30344135,2119.6,2119.4,6.33346509]
[1773375045485,0.30344135,2119.6,2119.3,1.556]
[1773375045679,0.30344135,2119.6,2119.3,7.88946509]
[1773375046889,0.30344135,2119.6,2119.4,7.51304421]
[1773375047062,7.54114564,2120.2,2119.5,2.135]
[1773375047257,7.54114564,2120.2,2119.5,8.46846509]
[1773375048791,6.3620116,2120.0,2119.3,7.5130932]
[1773375048979,6.3620116,2119.8,2119.4,2.136]
[1773375050184,0.002,2119.6,2119.4,2.136]
[1773375050387,6.3640116,2119.6,2119.4,2.136]
[1773375051793,7.54348131,2119.6,2119.1,1.18070091]
[1773375052287,7.54348131,2119.6,2119.1,0.001]
[1773375052462,7.54348131,2119.6,2119.1,1.18074308]
[1773375052663,7.54348131,2119.6,2119.1,6.29888108]
[1773375052863,7.54348131,2119.6,2119.1,7.47862412]
[1773375053192,7.54348131,2119.6,2119.2,2.14]
[1773375054391,6.15359471,2119.5,2119.2,2.14]
[1773375054696,6.15359471,2119.5,2119.2,8.43788108]
[1773375054866,1.18151112,2119.6,2119.3,6.29788108]
[1773375055065,7.33510583,2119.6,2119.3,6.29788108]
[1773375055261,7.33510583,2119.6,2119.3,6.34506647]
[1773375055494,0.002,2119.6,2119.3,7.52468978]
[1773375055993,0.002,2119.6,2119.3,6.34506647]
[1773375055994,1.18146976,2119.6,2119.3,6.34506647]
[1773375056564,0.002,2119.6,2119.3,6.34506647]
[1773375056765,0.002,2119.6,2119.3,7.52470088]
[1773375057167,0.002,2119.6,2119.4,6.29788108]
[1773375057371,0.002,2119.6,2119.5,0.04718093]
[1773375058101,0.002,2119.9,2119.6,6.29788108]
[1773375058268,0.002,2119.9,2119.7,8.44088108]
[1773375059602,6.15359471,2120.1,2119.8,1.17935654]
[1773375059905,6.15359471,2120.1,2119.7,2.143]
[1773375060073,6.15359471,2120.1,2119.4,6.29788108]
[1773375060074,6.15359471,2119.9,2119.1,7.47857637]
[1773375060276,6.15359471,2119.7,2119.1,0.001]
[1773375060986,6.15359471,2119.5,2119.1,0.001]
[1773375061380,6.15359471,2119.3,2119.2,2.147]
[1773375061801,7.33305895,2119.2,2119.1,0.001]
[1773375063303,7.33305895,2119.2,2119.1,2.15]
[1773375063607,8.51274939,2119.2,2119.1,2.15]
[1773375064206,6.15359471,2119.1,2119.0,0.001]
[1773375064396,6.15359471,2119.1,2118.7,0.001]
[1773375065489,1.17991315,2118.8,2118.4,0.001]
[1773375065694,6.70684382,2118.5,2118.4,0.001]
[1773375067102,6.70684382,2118.5,2118.2,0.001]
[1773375067324,6.70684382,2118.5,2118.0,0.001]
[1773375067486,1.18024737,2118.2,2118.0,0.001]
[1773375067688,6.15359471,2118.1,2117.9,0.60316608]
[1773375069583,1.17846424,2118.0,2117.9,0.60316608]
[1773375071582,1.17846424,2118.0,2117.9,2.75716608]
[1773375073107,8.51241777,2118.0,2117.7,1.557]
[1773375073309,8.51241777,2118.0,2117.7,0.001]
[1773375073310,6.15359471,2117.9,2117.7,0.001]
[1773375073488,6.15359471,2117.9,2117.5,0.001]
[1773375073689,1.18047029,2117.8,2117.5,0.001]
[1773375073987,6.15359471,2117.7,2117.5,0.001]
[1773375075412,6.15359471,2117.7,2117.6,2.155]
[1773375075888,7.33412075,2117.7,2117.6,2.155]
[1773375076109,7.33412075,2117.7,2117.5,0.001]
[1773375076504,6.15359471,2117.7,2117.5,0.001]
[1773375076811,7.33413018,2117.7,2117.5,0.001]
[1773375077008,7.33413018,2117.7,2117.2,0.001]
[1773375077615,6.94692101,2117.5,2117.0,0.001]
[1773375077814,6.15359471,2117.3,2117.0,0.001]
[1773375078319,6.15359471,2117.3,2117.1,2.155]
[1773375079218,6.15359471,2117.5,2117.2,0.04723219]
[1773375079418,6.15359471,2117.5,2117.1,8.45288108]
[1773375079917,6.15359471,2117.5,2117.1,2.155]